[Event "Late-Titled-Tuesday-Blitz-October-10-2023"]
[Site "Chess.com"]
[Date "2023.10.10"]
[Round "10"]
[White "Sofiia_Hryzlova"]
[Black "cthulhuuu"]
[Result "1-0"]
[WhiteElo "2400"]
[BlackElo "2458"]
[TimeControl "180+1"]
[EndTime "15:49:07 PDT"]
[Termination "Sofiia_Hryzlova won by checkmate"]

1. e4 {[%clk 0:02:57.7]} 1... d6 {[%clk 0:02:59.8]} 2. d4 {[%clk 0:02:55.8]}
2... Nf6 {[%clk 0:03:00.1]} 3. Nc3 {[%clk 0:02:54.9]} 3... c6 {[%clk 0:03:00.8]}
4. f4 {[%clk 0:02:54.6]} 4... Qb6 {[%clk 0:03:00.6]} 5. Nf3 {[%clk 0:02:54.5]}
5... Bg4 {[%clk 0:03:01]} 6. e5 {[%clk 0:02:38]} 6... Nd5 {[%clk 0:02:58.8]} 7.
Nxd5 {[%clk 0:02:37.5]} 7... cxd5 {[%clk 0:02:59.7]} 8. c3 {[%clk 0:02:38]} 8...
Nc6 {[%clk 0:02:57.5]} 9. exd6 {[%clk 0:02:15.5]} 9... e6 {[%clk 0:02:53.8]} 10.
d7+ {[%clk 0:02:16.4]} 10... Kxd7 {[%clk 0:02:54.1]} 11. Bd3 {[%clk 0:02:13.1]}
11... Bxf3 {[%clk 0:02:40.1]} 12. Qxf3 {[%clk 0:02:12.4]} 12... g6 {[%clk
0:02:40.7]} 13. O-O {[%clk 0:02:09.8]} 13... Bd6 {[%clk 0:02:41.1]} 14. Qe2
{[%clk 0:02:01.7]} 14... f5 {[%clk 0:02:02.6]} 15. Be3 {[%clk 0:01:58.7]} 15...
h6 {[%clk 0:01:47.2]} 16. Rae1 {[%clk 0:01:56.2]} 16... Rae8 {[%clk 0:01:45]}
17. b3 {[%clk 0:01:55.3]} 17... g5 {[%clk 0:01:39.2]} 18. Qf2 {[%clk 0:01:50.2]}
18... Qc7 {[%clk 0:01:23.7]} 19. g3 {[%clk 0:01:45.5]} 19... Rhg8 {[%clk
0:01:17]} 20. Kh1 {[%clk 0:01:44.8]} 20... g4 {[%clk 0:01:13.3]} 21. c4 {[%clk
0:01:42.5]} 21... Nb4 {[%clk 0:01:13.7]} 22. Be2 {[%clk 0:01:36.9]} 22... h5
{[%clk 0:01:03.9]} 23. Rc1 {[%clk 0:01:34.1]} 23... Nxa2 {[%clk 0:01:02.2]} 24.
cxd5 {[%clk 0:01:25.6]} 24... Nxc1 {[%clk 0:01:00.9]} 25. Bb5+ {[%clk
0:01:25.8]} 25... Kd8 {[%clk 0:00:59.3]} 26. Rxc1 {[%clk 0:01:22.1]} 26... Qa5
{[%clk 0:00:57]} 27. Qc2 {[%clk 0:01:06.1]} 27... Qxb5 {[%clk 0:00:55.9]} 28.
Qc8+ {[%clk 0:01:05.5]} 28... Ke7 {[%clk 0:00:56]} 29. Qxe6+ {[%clk 0:01:06.4]}
29... Kf8 {[%clk 0:00:34.3]} 30. Qf6# {[%clk 0:01:03.4]} 1-0

[Event "Late-Titled-Tuesday-Blitz-October-10-2023"]
[Site "Chess.com"]
[Date "2023.10.10"]
[Round "10"]
[White "ChristopherYoo"]
[Black "Alex_Sahakyan2006"]
[Result "1-0"]
[WhiteElo "3026"]
[BlackElo "2769"]
[TimeControl "180+1"]
[EndTime "15:49:09 PDT"]
[Termination "ChristopherYoo won by resignation"]

1. e4 {[%clk 0:03:00.9]} 1... c5 {[%clk 0:02:57.2]} 2. Nf3 {[%clk 0:03:00.7]}
2... Nc6 {[%clk 0:02:56.9]} 3. Bb5 {[%clk 0:03:00.5]} 3... g6 {[%clk 0:02:54.2]}
4. O-O {[%clk 0:03:00.5]} 4... Bg7 {[%clk 0:02:53.9]} 5. Re1 {[%clk 0:03:01.3]}
5... e5 {[%clk 0:02:48.5]} 6. b4 {[%clk 0:02:58.5]} 6... cxb4 {[%clk 0:02:44.9]}
7. a3 {[%clk 0:02:58.2]} 7... b3 {[%clk 0:02:40]} 8. cxb3 {[%clk 0:02:57.2]}
8... Nge7 {[%clk 0:02:40.4]} 9. Nc3 {[%clk 0:02:55.6]} 9... O-O {[%clk
0:02:37.2]} 10. a4 {[%clk 0:02:53.8]} 10... a6 {[%clk 0:02:28.8]} 11. Bc4 {[%clk
0:02:51.6]} 11... d6 {[%clk 0:02:25.4]} 12. h3 {[%clk 0:02:46.5]} 12... Be6
{[%clk 0:02:25.7]} 13. Ba3 {[%clk 0:02:45.4]} 13... Bxc4 {[%clk 0:02:18.6]} 14.
bxc4 {[%clk 0:02:45]} 14... Rc8 {[%clk 0:02:18.7]} 15. Rb1 {[%clk 0:02:39.6]}
15... Qd7 {[%clk 0:02:18.8]} 16. Nd5 {[%clk 0:02:37.9]} 16... Nxd5 {[%clk
0:02:18.6]} 17. cxd5 {[%clk 0:02:38.5]} 17... Nd4 {[%clk 0:02:17.2]} 18. Nxd4
{[%clk 0:02:17]} 18... exd4 {[%clk 0:02:18.1]} 19. Qb3 {[%clk 0:02:16]} 19...
Rc7 {[%clk 0:02:11.6]} 20. f4 {[%clk 0:02:03.4]} 20... Re8 {[%clk 0:01:54]} 21.
e5 {[%clk 0:01:56.3]} 21... dxe5 {[%clk 0:01:31.7]} 22. d6 {[%clk 0:01:55.8]}
22... Rc6 {[%clk 0:01:30.8]} 23. Qxb7 {[%clk 0:01:55.7]} 23... Rxd6 {[%clk
0:01:24.6]} 24. Bxd6 {[%clk 0:01:54.6]} 24... Qxd6 {[%clk 0:01:25.5]} 25. Rb6
{[%clk 0:01:44.3]} 25... Qa3 {[%clk 0:01:20.2]} 26. Rxa6 {[%clk 0:01:37.7]}
26... Qg3 {[%clk 0:01:09.1]} 27. Rf1 {[%clk 0:01:34.3]} 27... exf4 {[%clk
0:01:00.1]} 28. Ra8 {[%clk 0:01:30]} 28... Rxa8 {[%clk 0:00:47.9]} 29. Qxa8+
{[%clk 0:01:30.9]} 29... Bf8 {[%clk 0:00:47.4]} 30. Qf3 {[%clk 0:01:31.6]} 30...
Qg5 {[%clk 0:00:44.2]} 31. Qxf4 {[%clk 0:01:31.3]} 31... Qd5 {[%clk 0:00:43.8]}
32. Qf3 {[%clk 0:01:30]} 32... Qd7 {[%clk 0:00:39.1]} 33. a5 {[%clk 0:01:29.5]}
33... d3 {[%clk 0:00:39.3]} 34. a6 {[%clk 0:01:28.5]} 34... Bc5+ {[%clk
0:00:38]} 35. Kh1 {[%clk 0:01:28.5]} 35... h5 {[%clk 0:00:38.1]} 36. Qb7 {[%clk
0:01:25.1]} 1-0

[Event "Late-Titled-Tuesday-Blitz-October-10-2023"]
[Site "Chess.com"]
[Date "2023.10.10"]
[Round "10"]
[White "pinguino120"]
[Black "orestn"]
[Result "0-1"]
[WhiteElo "2245"]
[BlackElo "2400"]
[TimeControl "180+1"]
[EndTime "15:49:13 PDT"]
[Termination "orestn won by checkmate"]

1. e4 {[%clk 0:03:00.9]} 1... e5 {[%clk 0:02:59.4]} 2. Nf3 {[%clk 0:02:59.9]}
2... d6 {[%clk 0:02:59.8]} 3. d4 {[%clk 0:02:59.4]} 3... exd4 {[%clk 0:03:00.7]}
4. Qxd4 {[%clk 0:02:56.7]} 4... Nc6 {[%clk 0:02:57.7]} 5. Bb5 {[%clk 0:02:56.2]}
5... Bd7 {[%clk 0:02:58]} 6. Bxc6 {[%clk 0:02:56.6]} 6... Bxc6 {[%clk
0:02:57.6]} 7. Nc3 {[%clk 0:02:57.2]} 7... Nf6 {[%clk 0:02:56.6]} 8. Bg5 {[%clk
0:02:56.9]} 8... Be7 {[%clk 0:02:56.4]} 9. O-O-O {[%clk 0:02:55.8]} 9... O-O
{[%clk 0:02:56.3]} 10. Kb1 {[%clk 0:02:55.4]} 10... b5 {[%clk 0:02:51.4]} 11.
Rhe1 {[%clk 0:02:48.6]} 11... b4 {[%clk 0:02:50]} 12. Nd5 {[%clk 0:02:43.3]}
12... Nxd5 {[%clk 0:02:48.6]} 13. exd5 {[%clk 0:02:42.6]} 13... Bxg5 {[%clk
0:02:47.8]} 14. dxc6 {[%clk 0:02:43]} 14... Bf6 {[%clk 0:02:47.4]} 15. Qd5
{[%clk 0:02:34]} 15... Rb8 {[%clk 0:02:45.3]} 16. g4 {[%clk 0:02:33.6]} 16... a6
{[%clk 0:02:42.4]} 17. g5 {[%clk 0:02:33.8]} 17... Rb5 {[%clk 0:02:42.8]} 18.
Qe4 {[%clk 0:01:48.3]} 18... Bxg5 {[%clk 0:02:41.8]} 19. Nd4 {[%clk 0:01:45.6]}
19... Re5 {[%clk 0:02:39.3]} 20. Qg4 {[%clk 0:01:42.7]} 20... Bf6 {[%clk
0:02:33.4]} 21. Nf5 {[%clk 0:01:36.8]} 21... g6 {[%clk 0:02:22.6]} 22. Rxe5
{[%clk 0:01:25.2]} 22... Bxe5 {[%clk 0:02:21.6]} 23. h4 {[%clk 0:01:06.8]} 23...
Qf6 {[%clk 0:02:18.1]} 24. Ne3 {[%clk 0:01:02.4]} 24... Qxf2 {[%clk 0:01:56.8]}
25. Nd5 {[%clk 0:00:57.6]} 25... Qc5 {[%clk 0:01:53.6]} 26. h5 {[%clk
0:00:51.8]} 26... Bg7 {[%clk 0:01:43.1]} 27. hxg6 {[%clk 0:00:19.8]} 27... fxg6
{[%clk 0:01:40.5]} 28. Qe6+ {[%clk 0:00:17]} 28... Kh8 {[%clk 0:01:39.9]} 29.
Rh1 {[%clk 0:00:17.5]} 29... Qd4 {[%clk 0:01:33.9]} 30. c3 {[%clk 0:00:07.9]}
30... Qd3+ {[%clk 0:01:30.2]} 31. Kc1 {[%clk 0:00:08.1]} 31... bxc3 {[%clk
0:01:28.2]} 32. bxc3 {[%clk 0:00:05.7]} 32... Bxc3 {[%clk 0:01:24.3]} 33. Ne7
{[%clk 0:00:03.4]} 33... Qd2+ {[%clk 0:01:23.5]} 34. Kb1 {[%clk 0:00:03.8]}
34... Qb2# {[%clk 0:01:24]} 0-1

[Event "Late-Titled-Tuesday-Blitz-October-10-2023"]
[Site "Chess.com"]
[Date "2023.10.10"]
[Round "10"]
[White "FairChess_on_YouTube"]
[Black "Grischuk"]
[Result "1-0"]
[WhiteElo "3097"]
[BlackElo "2977"]
[TimeControl "180+1"]
[EndTime "15:49:20 PDT"]
[Termination "FairChess_on_YouTube won by resignation"]

1. c4 {[%clk 0:03:00.9]} 1... e5 {[%clk 0:02:59.6]} 2. Nc3 {[%clk 0:02:59.9]}
2... Nf6 {[%clk 0:02:59.7]} 3. e3 {[%clk 0:03:00.4]} 3... Bb4 {[%clk 0:02:59.7]}
4. Nge2 {[%clk 0:02:59.3]} 4... O-O {[%clk 0:02:59.9]} 5. a3 {[%clk 0:02:59.6]}
5... Be7 {[%clk 0:02:59.5]} 6. g3 {[%clk 0:03:00]} 6... c6 {[%clk 0:02:57.9]} 7.
d4 {[%clk 0:02:58.6]} 7... exd4 {[%clk 0:02:40.1]} 8. Qxd4 {[%clk 0:02:59.5]}
8... Na6 {[%clk 0:02:15.4]} 9. Bg2 {[%clk 0:02:58.5]} 9... Nc5 {[%clk
0:02:15.3]} 10. Qd1 {[%clk 0:02:58.5]} 10... a5 {[%clk 0:02:15.5]} 11. O-O
{[%clk 0:02:57.1]} 11... a4 {[%clk 0:02:15.2]} 12. e4 {[%clk 0:02:56.7]} 12...
d6 {[%clk 0:02:12]} 13. Be3 {[%clk 0:02:56.1]} 13... Be6 {[%clk 0:02:07.5]} 14.
Nd4 {[%clk 0:02:22.8]} 14... Bxc4 {[%clk 0:02:07.2]} 15. Re1 {[%clk 0:02:22.7]}
15... Re8 {[%clk 0:02:00.6]} 16. Nf5 {[%clk 0:02:19.1]} 16... Bf8 {[%clk
0:02:00.5]} 17. Qf3 {[%clk 0:02:10.7]} 17... Nd3 {[%clk 0:01:36.3]} 18. Bg5
{[%clk 0:01:44.7]} 18... Nxe1 {[%clk 0:01:34.3]} 19. Rxe1 {[%clk 0:01:45.6]}
19... Re6 {[%clk 0:01:22.6]} 20. Bh3 {[%clk 0:01:38.6]} 20... b5 {[%clk
0:01:18]} 21. Nd4 {[%clk 0:01:37.1]} 21... Ra6 {[%clk 0:00:49.9]} 22. Bxe6
{[%clk 0:01:28]} 22... Bxe6 {[%clk 0:00:50.8]} 23. Nxe6 {[%clk 0:01:04.9]} 23...
fxe6 {[%clk 0:00:51.7]} 24. e5 {[%clk 0:01:05.5]} 24... dxe5 {[%clk 0:00:51.4]}
25. Rd1 {[%clk 0:01:06.1]} 25... Qe8 {[%clk 0:00:25.7]} 26. Bxf6 {[%clk
0:01:03.3]} 26... Qf7 {[%clk 0:00:25.1]} 27. Ne4 {[%clk 0:00:57.6]} 27... Be7
{[%clk 0:00:24.5]} 28. Bxe7 {[%clk 0:00:49.5]} 1-0

[Event "Late-Titled-Tuesday-Blitz-October-10-2023"]
[Site "Chess.com"]
[Date "2023.10.10"]
[Round "10"]
[White "Eloist"]
[Black "jaskol95"]
[Result "0-1"]
[WhiteElo "2445"]
[BlackElo "2582"]
[TimeControl "180+1"]
[EndTime "15:49:25 PDT"]
[Termination "jaskol95 won by checkmate"]

1. e4 {[%clk 0:02:46.4]} 1... d5 {[%clk 0:02:52.1]} 2. exd5 {[%clk 0:02:45.8]}
2... Nf6 {[%clk 0:02:52.3]} 3. Nf3 {[%clk 0:02:45.1]} 3... Bg4 {[%clk
0:02:51.7]} 4. c4 {[%clk 0:02:40.5]} 4... c6 {[%clk 0:02:47.3]} 5. d4 {[%clk
0:02:00.6]} 5... cxd5 {[%clk 0:02:47.4]} 6. c5 {[%clk 0:01:56.1]} 6... Nc6
{[%clk 0:02:42.1]} 7. Be2 {[%clk 0:01:53.4]} 7... e6 {[%clk 0:02:40.5]} 8. h3
{[%clk 0:01:52.6]} 8... Bh5 {[%clk 0:02:37]} 9. O-O {[%clk 0:01:50.3]} 9... Be7
{[%clk 0:02:36.3]} 10. Nc3 {[%clk 0:01:49.3]} 10... O-O {[%clk 0:02:35.7]} 11.
b4 {[%clk 0:01:49]} 11... Nxb4 {[%clk 0:02:15.1]} 12. Rb1 {[%clk 0:01:48.3]}
12... Nc6 {[%clk 0:01:52.8]} 13. Rxb7 {[%clk 0:01:47.6]} 13... Ne4 {[%clk
0:01:53.3]} 14. Bb2 {[%clk 0:01:22.6]} 14... Bf6 {[%clk 0:01:50.3]} 15. g4
{[%clk 0:01:14.8]} 15... Bg6 {[%clk 0:01:50]} 16. Bb5 {[%clk 0:01:08.5]} 16...
Na5 {[%clk 0:01:42.2]} 17. Rd7 {[%clk 0:01:06.8]} 17... Qc8 {[%clk 0:01:42.5]}
18. Nxe4 {[%clk 0:00:46.9]} 18... dxe4 {[%clk 0:01:21.3]} 19. Nd2 {[%clk
0:00:22.9]} 19... a6 {[%clk 0:01:19.6]} 20. Ba4 {[%clk 0:00:22.5]} 20... Nc6
{[%clk 0:01:18.2]} 21. Rd6 {[%clk 0:00:18.7]} 21... Nb4 {[%clk 0:01:18.3]} 22.
Nc4 {[%clk 0:00:17.4]} 22... Nd3 {[%clk 0:01:16.1]} 23. Nb6 {[%clk 0:00:14.7]}
23... Qc7 {[%clk 0:01:11.3]} 24. Ba1 {[%clk 0:00:13.3]} 24... Rad8 {[%clk
0:01:06.8]} 25. Rc6 {[%clk 0:00:10]} 25... Qf4 {[%clk 0:01:03.9]} 26. Bc3 {[%clk
0:00:04.8]} 26... Ne5 {[%clk 0:01:01.6]} 27. Bd2 {[%clk 0:00:04.1]} 27... Nf3+
{[%clk 0:01:01.6]} 28. Kg2 {[%clk 0:00:02.8]} 28... Qh2# {[%clk 0:01:01.9]} 0-1

[Event "Late-Titled-Tuesday-Blitz-October-10-2023"]
[Site "Chess.com"]
[Date "2023.10.10"]
[Round "10"]
[White "kreonx"]
[Black "schondeln"]
[Result "1-0"]
[WhiteElo "2485"]
[BlackElo "2380"]
[TimeControl "180+1"]
[EndTime "15:49:46 PDT"]
[Termination "kreonx won by resignation"]

1. e4 {[%clk 0:02:53.2]} 1... d5 {[%clk 0:02:59.6]} 2. exd5 {[%clk 0:02:52.7]}
2... Qxd5 {[%clk 0:03:00.5]} 3. Nc3 {[%clk 0:02:50.7]} 3... Qa5 {[%clk
0:02:59.9]} 4. Nf3 {[%clk 0:02:51.1]} 4... Nf6 {[%clk 0:03:00.1]} 5. d4 {[%clk
0:02:50.9]} 5... Bf5 {[%clk 0:02:59.7]} 6. Bc4 {[%clk 0:02:47.8]} 6... e6 {[%clk
0:02:59.1]} 7. O-O {[%clk 0:02:48.3]} 7... c6 {[%clk 0:02:58.6]} 8. Bd2 {[%clk
0:02:48.8]} 8... Qc7 {[%clk 0:02:53]} 9. Ne5 {[%clk 0:02:45.2]} 9... Nbd7 {[%clk
0:02:53]} 10. Qe2 {[%clk 0:02:44.3]} 10... Nxe5 {[%clk 0:02:41]} 11. dxe5 {[%clk
0:02:44.1]} 11... Nd5 {[%clk 0:02:41]} 12. Nxd5 {[%clk 0:02:43.6]} 12... exd5
{[%clk 0:02:40.9]} 13. Bd3 {[%clk 0:02:42.4]} 13... Bxd3 {[%clk 0:02:39.5]} 14.
cxd3 {[%clk 0:02:42.7]} 14... O-O-O {[%clk 0:02:33.3]} 15. d4 {[%clk 0:02:41.9]}
15... Kb8 {[%clk 0:02:22.3]} 16. b4 {[%clk 0:02:42.1]} 16... Qd7 {[%clk
0:02:22]} 17. a4 {[%clk 0:02:41.2]} 17... Rc8 {[%clk 0:02:21.5]} 18. b5 {[%clk
0:02:40.4]} 18... c5 {[%clk 0:02:21.3]} 19. dxc5 {[%clk 0:02:38.4]} 19... Bxc5
{[%clk 0:02:20.8]} 20. Rfd1 {[%clk 0:02:36.7]} 20... Qe6 {[%clk 0:02:08.2]} 21.
Bf4 {[%clk 0:02:32.3]} 21... Rhd8 {[%clk 0:02:04.7]} 22. Rd3 {[%clk 0:02:29]}
22... Rd7 {[%clk 0:02:00.9]} 23. Rad1 {[%clk 0:02:29.3]} 23... h6 {[%clk
0:01:57.2]} 24. Qh5 {[%clk 0:02:15.5]} 24... d4 {[%clk 0:01:49.1]} 25. h3 {[%clk
0:02:10.7]} 25... Rd5 {[%clk 0:01:48.4]} 26. Rf3 {[%clk 0:01:59.9]} 26... Rcd8
{[%clk 0:01:44.7]} 27. Rdd3 {[%clk 0:02:00.2]} 27... R8d7 {[%clk 0:01:40.9]} 28.
Bg3 {[%clk 0:01:59.6]} 28... b6 {[%clk 0:01:30.6]} 29. Kh2 {[%clk 0:01:58.8]}
29... Kb7 {[%clk 0:01:30.7]} 30. Qh4 {[%clk 0:01:44.6]} 30... Be7 {[%clk
0:01:14.2]} 31. Qe4 {[%clk 0:01:44.2]} 31... Bc5 {[%clk 0:01:02.2]} 32. Qh7
{[%clk 0:01:41.5]} 32... Bf8 {[%clk 0:00:39.7]} 33. Qg8 {[%clk 0:01:40.1]} 33...
Qe8 {[%clk 0:00:39.2]} 34. e6 {[%clk 0:01:36.3]} 34... Re7 {[%clk 0:00:18.1]}
35. exf7 {[%clk 0:01:22.2]} 35... Qd8 {[%clk 0:00:17.2]} 36. Qh7 {[%clk
0:01:14.6]} 36... Rdd7 {[%clk 0:00:16.3]} 37. Bh4 {[%clk 0:01:08.2]} 37... g5
{[%clk 0:00:15.4]} 38. Bg3 {[%clk 0:01:08.8]} 38... a6 {[%clk 0:00:11.1]} 39.
Qg6 {[%clk 0:01:08.9]} 39... axb5 {[%clk 0:00:10.9]} 40. axb5 {[%clk 0:01:09.2]}
40... Rxf7 {[%clk 0:00:08.9]} 41. Rxf7 {[%clk 0:01:05.6]} 41... Rxf7 {[%clk
0:00:07.8]} 42. Qxf7+ {[%clk 0:01:06.5]} 1-0

[Event "Late-Titled-Tuesday-Blitz-October-10-2023"]
[Site "Chess.com"]
[Date "2023.10.10"]
[Round "10"]
[White "KejJaj"]
[Black "familijatop71"]
[Result "0-1"]
[WhiteElo "2144"]
[BlackElo "2134"]
[TimeControl "180+1"]
[EndTime "15:49:49 PDT"]
[Termination "familijatop71 won by checkmate"]

1. d4 {[%clk 0:03:00.9]} 1... Nf6 {[%clk 0:02:58.7]} 2. Bf4 {[%clk 0:03:01.5]}
2... g6 {[%clk 0:02:50.2]} 3. Nc3 {[%clk 0:03:00.5]} 3... Bg7 {[%clk 0:02:49.9]}
4. e4 {[%clk 0:03:01.1]} 4... d6 {[%clk 0:02:49.7]} 5. Qd2 {[%clk 0:03:01.3]}
5... h5 {[%clk 0:02:41.8]} 6. O-O-O {[%clk 0:02:59]} 6... Nfd7 {[%clk
0:02:17.6]} 7. Nf3 {[%clk 0:02:54.5]} 7... c5 {[%clk 0:02:15.9]} 8. dxc5 {[%clk
0:02:24.3]} 8... Qa5 {[%clk 0:01:59.5]} 9. Nd4 {[%clk 0:01:29.1]} 9... Nxc5
{[%clk 0:01:49.9]} 10. Bc4 {[%clk 0:01:18.6]} 10... Nc6 {[%clk 0:01:47]} 11. Be3
{[%clk 0:01:13.7]} 11... a6 {[%clk 0:01:32.2]} 12. f4 {[%clk 0:00:51.6]} 12...
Bd7 {[%clk 0:01:25.3]} 13. Rhe1 {[%clk 0:00:43.1]} 13... b5 {[%clk 0:01:14.2]}
14. Bd5 {[%clk 0:00:40.8]} 14... Rc8 {[%clk 0:00:44.5]} 15. Bxc6 {[%clk
0:00:34.6]} 15... Bxc6 {[%clk 0:00:42.7]} 16. e5 {[%clk 0:00:32.3]} 16... b4
{[%clk 0:00:39.4]} 17. Nb1 {[%clk 0:00:29]} 17... Qxa2 {[%clk 0:00:32]} 18. exd6
{[%clk 0:00:27.2]} 18... Be4 {[%clk 0:00:21.3]} 19. d7+ {[%clk 0:00:23.1]} 19...
Nxd7 {[%clk 0:00:16.3]} 20. c4 {[%clk 0:00:14.5]} 20... Qxb1# {[%clk 0:00:10.3]}
0-1

[Event "Late-Titled-Tuesday-Blitz-October-10-2023"]
[Site "Chess.com"]
[Date "2023.10.10"]
[Round "10"]
[White "Bala-Afiada"]
[Black "flukeyNZ"]
[Result "0-1"]
[WhiteElo "1946"]
[BlackElo "2239"]
[TimeControl "180+1"]
[EndTime "15:49:55 PDT"]
[Termination "flukeyNZ won by resignation"]

1. d4 {[%clk 0:03:00.3]} 1... Nf6 {[%clk 0:02:58.5]} 2. c4 {[%clk 0:03:00.6]}
2... g6 {[%clk 0:02:56.9]} 3. Nc3 {[%clk 0:03:00.5]} 3... Bg7 {[%clk 0:02:57.5]}
4. e4 {[%clk 0:03:00.8]} 4... d6 {[%clk 0:02:57.6]} 5. Nf3 {[%clk 0:03:01.5]}
5... O-O {[%clk 0:02:58]} 6. Be2 {[%clk 0:03:02.1]} 6... e5 {[%clk 0:02:56.1]}
7. Be3 {[%clk 0:03:02.7]} 7... Ng4 {[%clk 0:02:49.5]} 8. Bg5 {[%clk 0:03:02.3]}
8... f6 {[%clk 0:02:49.3]} 9. Bh4 {[%clk 0:03:00.7]} 9... Qe8 {[%clk 0:02:44.5]}
10. d5 {[%clk 0:02:59.6]} 10... f5 {[%clk 0:02:40.7]} 11. h3 {[%clk 0:02:57.1]}
11... Nf6 {[%clk 0:02:35.2]} 12. Qc2 {[%clk 0:02:45.1]} 12... Na6 {[%clk
0:02:28.1]} 13. a3 {[%clk 0:02:42.5]} 13... Nc5 {[%clk 0:02:25.6]} 14. Bxf6
{[%clk 0:02:39.6]} 14... Bxf6 {[%clk 0:02:22.9]} 15. b4 {[%clk 0:02:37.5]} 15...
Nxe4 {[%clk 0:02:21.9]} 16. Nxe4 {[%clk 0:02:33.5]} 16... fxe4 {[%clk
0:02:21.6]} 17. Qxe4 {[%clk 0:02:12.2]} 17... Bf5 {[%clk 0:02:18.9]} 18. Qe3
{[%clk 0:02:12.2]} 18... e4 {[%clk 0:02:06.3]} 19. Nd4 {[%clk 0:02:12.3]} 19...
Bd7 {[%clk 0:01:12.4]} 20. Rd1 {[%clk 0:02:01.8]} 20... Qe5 {[%clk 0:01:12]} 21.
O-O {[%clk 0:01:42.9]} 21... Bg5 {[%clk 0:01:10.8]} 22. Qc3 {[%clk 0:01:17]}
22... Rae8 {[%clk 0:00:58.3]} 23. Nb5 {[%clk 0:01:01.3]} 23... Qxc3 {[%clk
0:00:47.8]} 24. Nxc3 {[%clk 0:01:02.2]} 24... e3 {[%clk 0:00:47.9]} 25. fxe3
{[%clk 0:00:43.4]} 25... Bxe3+ {[%clk 0:00:47.6]} 26. Kh1 {[%clk 0:00:43.8]}
26... Rxf1+ {[%clk 0:00:47.5]} 27. Rxf1 {[%clk 0:00:43.5]} 27... Bd4 {[%clk
0:00:47.5]} 28. Bg4 {[%clk 0:00:01.7]} 28... Bxg4 {[%clk 0:00:45.5]} 29. hxg4
{[%clk 0:00:02.3]} 29... Bxc3 {[%clk 0:00:45.2]} 30. Rf6 {[%clk 0:00:02.7]} 0-1

[Event "Late-Titled-Tuesday-Blitz-October-10-2023"]
[Site "Chess.com"]
[Date "2023.10.10"]
[Round "10"]
[White "CraiggoryC"]
[Black "Defenstrator"]
[Result "1-0"]
[WhiteElo "2292"]
[BlackElo "2396"]
[TimeControl "180+1"]
[EndTime "15:49:57 PDT"]
[Termination "CraiggoryC won by resignation"]

1. e4 {[%clk 0:03:00.9]} 1... g5 {[%clk 0:02:54.8]} 2. d4 {[%clk 0:03:00]} 2...
h6 {[%clk 0:02:53.4]} 3. h4 {[%clk 0:02:59.7]} 3... gxh4 {[%clk 0:02:53.6]} 4.
Nf3 {[%clk 0:02:58.1]} 4... d5 {[%clk 0:02:53.1]} 5. exd5 {[%clk 0:02:57.6]}
5... Nf6 {[%clk 0:02:43]} 6. Bb5+ {[%clk 0:02:55.9]} 6... Bd7 {[%clk 0:02:38.4]}
7. Bxd7+ {[%clk 0:02:52.1]} 7... Qxd7 {[%clk 0:02:30.4]} 8. c4 {[%clk
0:02:40.7]} 8... c6 {[%clk 0:02:23.9]} 9. Ne5 {[%clk 0:02:26.2]} 9... Qf5 {[%clk
0:02:20.7]} 10. dxc6 {[%clk 0:02:26.1]} 10... Qe4+ {[%clk 0:02:00.9]} 11. Qe2
{[%clk 0:01:53.2]} 11... Qxg2 {[%clk 0:01:57.9]} 12. Rxh4 {[%clk 0:01:30.5]}
12... Nxc6 {[%clk 0:01:49.1]} 13. Nxc6 {[%clk 0:01:25.9]} 13... bxc6 {[%clk
0:01:34.7]} 14. Nc3 {[%clk 0:01:13.3]} 14... Qg1+ {[%clk 0:01:32.1]} 15. Qf1
{[%clk 0:01:10.2]} 15... Qg6 {[%clk 0:01:30.9]} 16. Be3 {[%clk 0:00:59.5]} 16...
e6 {[%clk 0:01:28.6]} 17. O-O-O {[%clk 0:00:49.2]} 17... Bb4 {[%clk 0:01:25.3]}
18. Qh1 {[%clk 0:00:45.6]} 18... Kd7 {[%clk 0:01:02.8]} 19. d5 {[%clk
0:00:23.2]} 19... cxd5 {[%clk 0:00:58.4]} 20. cxd5 {[%clk 0:00:23]} 20... Bxc3
{[%clk 0:00:57]} 21. dxe6+ {[%clk 0:00:20.5]} 21... Kxe6 {[%clk 0:00:50.5]} 22.
Qc6+ {[%clk 0:00:20.3]} 22... Kf5 {[%clk 0:00:34.9]} 23. Rf4+ {[%clk 0:00:13.7]}
23... Kg5 {[%clk 0:00:35.3]} 24. Rxf6+ {[%clk 0:00:11.8]} 24... Kg4 {[%clk
0:00:30.3]} 25. Rxg6+ {[%clk 0:00:12.1]} 25... fxg6 {[%clk 0:00:30.3]} 26. Qxg6+
{[%clk 0:00:12.7]} 26... Kf3 {[%clk 0:00:30.7]} 27. Qg3+ {[%clk 0:00:12.5]}
27... Ke4 {[%clk 0:00:31]} 28. bxc3 {[%clk 0:00:12.5]} 28... Rhf8 {[%clk
0:00:28.5]} 29. Rd4+ {[%clk 0:00:12.6]} 29... Kf5 {[%clk 0:00:27.9]} 30. Rf4+
{[%clk 0:00:12.9]} 1-0

[Event "Late-Titled-Tuesday-Blitz-October-10-2023"]
[Site "Chess.com"]
[Date "2023.10.10"]
[Round "10"]
[White "GMKrikor"]
[Black "BogdanDeac"]
[Result "0-1"]
[WhiteElo "2793"]
[BlackElo "3007"]
[TimeControl "180+1"]
[EndTime "15:50:04 PDT"]
[Termination "BogdanDeac won by resignation"]

1. Nf3 {[%clk 0:03:00.9]} 1... Nf6 {[%clk 0:03:00.1]} 2. c4 {[%clk 0:02:58.8]}
2... g6 {[%clk 0:03:00.2]} 3. Nc3 {[%clk 0:02:58.9]} 3... Bg7 {[%clk 0:02:59.7]}
4. e4 {[%clk 0:02:58.9]} 4... d6 {[%clk 0:03:00]} 5. d4 {[%clk 0:02:59.5]} 5...
O-O {[%clk 0:03:00.6]} 6. h3 {[%clk 0:03:00]} 6... e5 {[%clk 0:02:59.2]} 7. d5
{[%clk 0:03:00.5]} 7... Nh5 {[%clk 0:02:58.2]} 8. Be3 {[%clk 0:02:56.5]} 8... f5
{[%clk 0:02:53.1]} 9. Bd3 {[%clk 0:02:56.7]} 9... Na6 {[%clk 0:02:41.3]} 10.
exf5 {[%clk 0:02:03.6]} 10... gxf5 {[%clk 0:02:40.2]} 11. g4 {[%clk 0:02:04.2]}
11... Nf4 {[%clk 0:02:26.1]} 12. Bxf4 {[%clk 0:01:58.1]} 12... exf4 {[%clk
0:02:21.7]} 13. g5 {[%clk 0:01:53.8]} 13... Nc5 {[%clk 0:02:10]} 14. Kf1 {[%clk
0:01:53.5]} 14... Bd7 {[%clk 0:02:00]} 15. Bc2 {[%clk 0:01:39.3]} 15... Be8
{[%clk 0:01:51.6]} 16. Qd2 {[%clk 0:01:28.4]} 16... Bh5 {[%clk 0:01:29.2]} 17.
Qxf4 {[%clk 0:01:26.1]} 17... Bxf3 {[%clk 0:01:29.1]} 18. Qxf3 {[%clk
0:01:26.1]} 18... Qxg5 {[%clk 0:01:29.7]} 19. Rd1 {[%clk 0:00:48.2]} 19... Qh4
{[%clk 0:01:23.5]} 20. b3 {[%clk 0:00:44.7]} 20... Ne4 {[%clk 0:01:16.2]} 21.
Ne2 {[%clk 0:00:39.3]} 21... Be5 {[%clk 0:00:53]} 22. Bxe4 {[%clk 0:00:18.2]}
22... fxe4 {[%clk 0:00:52.2]} 23. Qg4+ {[%clk 0:00:18.9]} 23... Qxg4 {[%clk
0:00:49.6]} 24. hxg4 {[%clk 0:00:19.8]} 24... Rf3 {[%clk 0:00:44.7]} 25. Kg2
{[%clk 0:00:19.8]} 25... Raf8 {[%clk 0:00:44.5]} 26. Rdf1 {[%clk 0:00:16.9]}
26... a5 {[%clk 0:00:34.7]} 27. Rh4 {[%clk 0:00:16.6]} 27... e3 {[%clk
0:00:22.1]} 28. fxe3 {[%clk 0:00:16.3]} 28... Rxf1 {[%clk 0:00:21.8]} 0-1